Workbook

Sheet Лист1
D3: 10 | E3: 8 | F3: 4 | J3: 12 | K3: 3 | L3: 0 | P3: 12 | Q3: 0 | R3: 4 | V3: 0 | W3: 8 | X3: 4 | AB3: 4 | AC3: 4 | AD3: 4 | AH3: 4 | AI3: 8 | AJ3: 16 | AN3: 2 | AO3: 2 | AP3: 8
D4: R | E4: G | F4: B | J4: R | K4: G | L4: B | P4: R | Q4: G | R4: B | V4: R | W4: G | X4: B | AB4: R | AC4: G | AD4: B | AH4: R | AI4: G | AJ4: B | AN4: R | AO4: G | AP4: B
D5: 255 | E5: 255 | F5: 255 | J5: 255 | K5: 255 | L5: 255 | P5: 255 | Q5: 255 | R5: 255 | V5: 255 | W5: 255 | X5: 255 | AB5: 255 | AC5: 255 | AD5: 255 | AH5: 255 | AI5: 255 | AJ5: 255 | AN5: 255 | AO5: 255 | AP5: 255
B7: =B6+1 -> 1 | C7: крась | D7: =IF(D5<0,0,IF(D5>255,255,D5)) -> 255 | E7: =IF(E5<0,0,IF(E5>255,255,E5)) -> 255 | F7: =IF(F5<0,0,IF(F5>255,255,F5)) -> 255 | I7: крась | J7: =IF(J5<0,0,IF(J5>255,255,J5)) -> 255 | K7: 255 | L7: 255 | O7: крась | P7: =IF(P5<0,0,IF(P5>255,255,P5)) -> 255 | Q7: 255 | R7: 255 | U7: крась | V7: =IF(V5<0,0,IF(V5>255,255,V5)) -> 255 | W7: 255 | X7: 255 | AA7: крась | AB7: =IF(AB5<0,0,IF(AB5>255,255,AB5)) -> 255 | AC7: 255 | AD7: 255 | AG7: крась | AH7: =IF(AH5<0,0,IF(AH5>255,255,AH5)) -> 255 | AI7: 255 | AJ7: 255 | AM7: крась | AN7: =IF(AN5<0,0,IF(AN5>255,255,AN5)) -> 255 | AO7: 255 | AP7: 255
B8: =B7+1 -> 2 | C8: крась | D8: =IF(D7-D$3<0,0,IF(D7-D$3>255,255,D7-D$3)) -> 245 | E8: =IF(E7-E$3<0,0,IF(E7-E$3>255,255,E7-E$3)) -> 247 | F8: =IF(F7-F$3<0,0,IF(F7-F$3>255,255,F7-F$3)) -> 251 | I8: крась | J8: =IF(J7-J$3<0,0,IF(J7-J$3>255,255,J7-J$3)) -> 243 | K8: 252 | L8: 255 | O8: крась | P8: =IF(P7-P$3<0,0,IF(P7-P$3>255,255,P7-P$3)) -> 243 | Q8: 255 | R8: 251 | U8: крась | V8: =IF(V7-V$3<0,0,IF(V7-V$3>255,255,V7-V$3)) -> 255 | W8: 247 | X8: 251 | AA8: крась | AB8: =IF(AB7-AB$3<0,0,IF(AB7-AB$3>255,255,AB7-AB$3)) -> 251 | AC8: 251 | AD8: 251 | AG8: крась | AH8: =IF(AH7-AH$3<0,0,IF(AH7-AH$3>255,255,AH7-AH$3)) -> 251 | AI8: 247 | AJ8: 239 | AM8: крась | AN8: =IF(AN7-AN$3<0,0,IF(AN7-AN$3>255,255,AN7-AN$3)) -> 253 | AO8: 253 | AP8: 247
B9: 3 | C9: крась | D9: =IF(D8-D$3<0,0,IF(D8-D$3>255,255,D8-D$3)) -> 235 | E9: 239 | F9: 247 | I9: крась | J9: 231 | K9: 249 | L9: 255 | O9: крась | P9: 231 | Q9: 255 | R9: 247 | U9: крась | V9: 255 | W9: 239 | X9: 247 | AA9: крась | AB9: 247 | AC9: 247 | AD9: 247 | AG9: крась | AH9: 247 | AI9: 239 | AJ9: 223 | AM9: крась | AN9: 251 | AO9: 251 | AP9: 239
B10: 4 | C10: крась | D10: 225 | E10: 231 | F10: 243 | I10: крась | J10: 219 | K10: 246 | L10: 255 | O10: крась | P10: 219 | Q10: 255 | R10: 243 | U10: крась | V10: 255 | W10: 231 | X10: 243 | AA10: крась | AB10: 243 | AC10: 243 | AD10: 243 | AG10: крась | AH10: 243 | AI10: 231 | AJ10: 207 | AM10: крась | AN10: 249 | AO10: 249 | AP10: 231
B11: 5 | C11: крась | D11: 215 | E11: 223 | F11: 239 | I11: крась | J11: 207 | K11: 243 | L11: 255 | O11: крась | P11: 207 | Q11: 255 | R11: 239 | U11: крась | V11: 255 | W11: 223 | X11: 239 | AA11: крась | AB11: 239 | AC11: 239 | AD11: 239 | AG11: крась | AH11: 239 | AI11: 223 | AJ11: 191 | AM11: крась | AN11: 247 | AO11: 247 | AP11: 223
B12: 6 | C12: крась | D12: 205 | E12: 215 | F12: 235 | I12: крась | J12: 195 | K12: 240 | L12: 255 | O12: крась | P12: 195 | Q12: 255 | R12: 235 | U12: крась | V12: 255 | W12: 215 | X12: 235 | AA12: крась | AB12: 235 | AC12: 235 | AD12: 235 | AG12: крась | AH12: 235 | AI12: 215 | AJ12: 175 | AM12: крась | AN12: 245 | AO12: 245 | AP12: 215
B13: 7 | C13: крась | D13: 195 | E13: 207 | F13: 231 | I13: крась | J13: 183 | K13: 237 | L13: 255 | O13: крась | P13: 183 | Q13: 255 | R13: 231 | U13: крась | V13: 255 | W13: 207 | X13: 231 | AA13: крась | AB13: 231 | AC13: 231 | AD13: 231 | AG13: крась | AH13: 231 | AI13: 207 | AJ13: 159 | AM13: крась | AN13: 243 | AO13: 243 | AP13: 207
B14: 8 | C14: крась | D14: 185 | E14: 199 | F14: 227 | I14: крась | J14: 171 | K14: 234 | L14: 255 | O14: крась | P14: 171 | Q14: 255 | R14: 227 | U14: крась | V14: 255 | W14: 199 | X14: 227 | AA14: крась | AB14: 227 | AC14: 227 | AD14: 227 | AG14: крась | AH14: 227 | AI14: 199 | AJ14: 143 | AM14: крась | AN14: 241 | AO14: 241 | AP14: 199
B15: 9 | C15: крась | D15: 175 | E15: 191 | F15: 223 | I15: крась | J15: 159 | K15: 231 | L15: 255 | O15: крась | P15: 159 | Q15: 255 | R15: 223 | U15: крась | V15: 255 | W15: 191 | X15: 223 | AA15: крась | AB15: 223 | AC15: 223 | AD15: 223 | AG15: крась | AH15: 223 | AI15: 191 | AJ15: 127 | AM15: крась | AN15: 239 | AO15: 239 | AP15: 191
B16: 10 | C16: крась | D16: 165 | E16: 183 | F16: 219 | I16: крась | J16: 147 | K16: 228 | L16: 255 | O16: крась | P16: 147 | Q16: 255 | R16: 219 | U16: крась | V16: 255 | W16: 183 | X16: 219 | AA16: крась | AB16: 219 | AC16: 219 | AD16: 219 | AG16: крась | AH16: 219 | AI16: 183 | AJ16: 111 | AM16: крась | AN16: 237 | AO16: 237 | AP16: 183
B17: 11 | C17: крась | D17: 155 | E17: 175 | F17: 215 | I17: крась | J17: 135 | K17: 225 | L17: 255 | O17: крась | P17: 135 | Q17: 255 | R17: 215 | U17: крась | V17: 255 | W17: 175 | X17: 215 | AA17: крась | AB17: 215 | AC17: 215 | AD17: 215 | AG17: крась | AH17: 215 | AI17: 175 | AJ17: 95 | AM17: крась | AN17: 235 | AO17: 235 | AP17: 175
B18: 12 | C18: крась | D18: 145 | E18: 167 | F18: 211 | I18: крась | J18: 123 | K18: 222 | L18: 255 | O18: крась | P18: 123 | Q18: 255 | R18: 211 | U18: крась | V18: 255 | W18: 167 | X18: 211 | AA18: крась | AB18: 211 | AC18: 211 | AD18: 211 | AG18: крась | AH18: 211 | AI18: 167 | AJ18: 79 | AM18: крась | AN18: 233 | AO18: 233 | AP18: 167
B19: 13 | C19: крась | D19: 135 | E19: 159 | F19: 207 | I19: крась | J19: 111 | K19: 219 | L19: 255 | O19: крась | P19: 111 | Q19: 255 | R19: 207 | U19: крась | V19: 255 | W19: 159 | X19: 207 | AA19: крась | AB19: 207 | AC19: 207 | AD19: 207 | AG19: крась | AH19: 207 | AI19: 159 | AJ19: 63 | AM19: крась | AN19: 231 | AO19: 231 | AP19: 159
B20: 14 | C20: крась | D20: =IF(D19-D$3<0,0,IF(D19-D$3>255,255,D19-D$3)) -> 125 | E20: =IF(E19-E$3<0,0,IF(E19-E$3>255,255,E19-E$3)) -> 151 | F20: =IF(F19-F$3<0,0,IF(F19-F$3>255,255,F19-F$3)) -> 203 | I20: крась | J20: 99 | K20: 216 | L20: 255 | O20: крась | P20: 99 | Q20: 255 | R20: 203 | U20: крась | V20: 255 | W20: 151 | X20: 203 | AA20: крась | AB20: 203 | AC20: 203 | AD20: 203 | AG20: крась | AH20: 203 | AI20: 151 | AJ20: 47 | AM20: крась | AN20: 229 | AO20: 229 | AP20: 151
B21: 15 | C21: крась | D21: 115 | E21: 143 | F21: 199 | I21: крась | J21: 87 | K21: 213 | L21: 255 | O21: крась | P21: 87 | Q21: 255 | R21: 199 | U21: крась | V21: 255 | W21: 143 | X21: 199 | AA21: крась | AB21: 199 | AC21: 199 | AD21: 199 | AG21: крась | AH21: 199 | AI21: 143 | AJ21: 31 | AM21: крась | AN21: 227 | AO21: 227 | AP21: 143
B22: 16 | C22: крась | D22: 105 | E22: 135 | F22: 195 | J22: 75 | K22: 210 | L22: 255 | O22: крась | P22: 75 | Q22: 255 | R22: 195 | U22: крась | V22: 255 | W22: 135 | X22: 195 | AA22: крась | AB22: 195 | AC22: 195 | AD22: 195 | AG22: крась | AH22: 195 | AI22: 135 | AJ22: 15 | AM22: крась | AN22: 225 | AO22: 225 | AP22: 135
B23: 17 | C23: крась | D23: 95 | E23: 127 | F23: 191 | J23: 63 | K23: 207 | L23: 255 | O23: крась | P23: 63 | Q23: 255 | R23: 191 | U23: крась | V23: 255 | W23: 127 | X23: 191 | AA23: крась | AB23: 191 | AC23: 191 | AD23: 191 | AG23: крась | AH23: 191 | AI23: 127 | AJ23: 0 | AM23: крась | AN23: 223 | AO23: 223 | AP23: 127
B24: 18 | C24: крась | D24: =IF(D23-D$3<0,0,IF(D23-D$3>255,255,D23-D$3)) -> 85 | E24: =IF(E23-E$3<0,0,IF(E23-E$3>255,255,E23-E$3)) -> 119 | F24: =IF(F23-F$3<0,0,IF(F23-F$3>255,255,F23-F$3)) -> 187 | J24: =IF(J23-J$3<0,0,IF(J23-J$3>255,255,J23-J$3)) -> 51 | K24: 204 | L24: 255 | O24: крась | P24: =IF(P23-P$3<0,0,IF(P23-P$3>255,255,P23-P$3)) -> 51 | Q24: 255 | R24: 187 | U24: крась | V24: =IF(V23-V$3<0,0,IF(V23-V$3>255,255,V23-V$3)) -> 255 | W24: 119 | X24: 187 | AA24: крась | AB24: =IF(AB23-AB$3<0,0,IF(AB23-AB$3>255,255,AB23-AB$3)) -> 187 | AC24: 187 | AD24: 187 | AG24: крась | AH24: =IF(AH23-AH$3<0,0,IF(AH23-AH$3>255,255,AH23-AH$3)) -> 187 | AI24: 119 | AJ24: 0 | AM24: крась | AN24: =IF(AN23-AN$3<0,0,IF(AN23-AN$3>255,255,AN23-AN$3)) -> 221 | AO24: 221 | AP24: 119
B25: 19 | C25: крась | D25: 75 | E25: 111 | F25: 183 | J25: 39 | K25: 201 | L25: 255 | O25: крась | P25: 39 | Q25: 255 | R25: 183 | U25: крась | V25: 255 | W25: 111 | X25: 183 | AA25: крась | AB25: 183 | AC25: 183 | AD25: 183 | AG25: крась | AH25: 183 | AI25: 111 | AJ25: 0 | AM25: крась | AN25: 219 | AO25: 219 | AP25: 111
B26: 20 | C26: крась | D26: 65 | E26: 103 | F26: 179 | I26: крась | J26: 27 | K26: 198 | L26: 255 | O26: крась | P26: 27 | Q26: 255 | R26: 179 | U26: крась | V26: 255 | W26: 103 | X26: 179 | AA26: крась | AB26: 179 | AC26: 179 | AD26: 179 | AG26: крась | AH26: 179 | AI26: 103 | AJ26: 0 | AM26: крась | AN26: 217 | AO26: 217 | AP26: 103
B27: 21 | D27: 55 | E27: 95 | F27: 175 | I27: крась | J27: 15 | K27: 195 | L27: 255 | O27: крась | P27: 15 | Q27: 255 | R27: 175 | U27: крась | V27: 255 | W27: 95 | X27: 175 | AA27: крась | AB27: 175 | AC27: 175 | AD27: 175 | AG27: крась | AH27: 175 | AI27: 95 | AJ27: 0 | AM27: крась | AN27: 215 | AO27: 215 | AP27: 95
B28: 22 | D28: 45 | E28: 87 | F28: 171 | I28: крась | J28: 3 | K28: 192 | L28: 255 | O28: крась | P28: 3 | Q28: 255 | R28: 171 | U28: крась | V28: 255 | W28: 87 | X28: 171 | AA28: крась | AB28: 171 | AC28: 171 | AD28: 171 | AG28: крась | AH28: 171 | AI28: 87 | AJ28: 0 | AM28: крась | AN28: 213 | AO28: 213 | AP28: 87
B29: =B28+1 -> 23 | D29: 35 | E29: 79 | F29: 167 | I29: крась | J29: 0 | K29: 189 | L29: 255 | O29: крась | P29: 0 | Q29: 255 | R29: 167 | U29: крась | V29: 255 | W29: 79 | X29: 167 | AA29: крась | AB29: 167 | AC29: 167 | AD29: 167 | AG29: крась | AH29: 167 | AI29: 79 | AJ29: 0 | AM29: крась | AN29: 211 | AO29: 211 | AP29: 79
B30: 24 | D30: 25 | E30: 71 | F30: 163 | I30: крась | J30: 0 | K30: 186 | L30: 255 | O30: крась | P30: 0 | Q30: 255 | R30: 163 | U30: крась | V30: 255 | W30: 71 | X30: 163 | AA30: крась | AB30: 163 | AC30: 163 | AD30: 163 | AG30: крась | AH30: 163 | AI30: 71 | AJ30: 0 | AM30: крась | AN30: 209 | AO30: 209 | AP30: 71
B31: 25 | C31: крась | D31: 15 | E31: 63 | F31: 159 | I31: крась | J31: 0 | K31: 183 | L31: 255 | O31: крась | P31: 0 | Q31: 255 | R31: 159 | U31: крась | V31: 255 | W31: 63 | X31: 159 | AA31: крась | AB31: 159 | AC31: 159 | AD31: 159 | AG31: крась | AH31: 159 | AI31: 63 | AJ31: 0 | AM31: крась | AN31: 207 | AO31: 207 | AP31: 63

Sheet Лист2

Sheet Лист3
